bitfinex-derivatives/quotes_ETHF0:USTF0_20240818
["timestamp","ask_amount","ask_price","bid_price","bid_amount"]
[1723972761220,5.70208042,2621.4,2621.3,40.80371335]
[1723972761424,5.70208042,2621.4,2621.3,41.15001335]
[1723972761923,7.60918042,2621.4,2621.3,41.15001335]
[1723972762220,7.60918042,2621.4,2621.3,40.80371335]
[1723972762427,7.60918042,2621.4,2620.8,0.6925]
[1723972762428,1.9073,2621.2,2620.8,0.6925]
[1723972762624,11.79358042,2621.4,2620.8,0.6925]
[1723972762625,5.11527,2620.9,2620.8,0.6925]
[1723972763418,3.2078,2620.9,2620.8,41.49550718]
[1723972763618,2.46263042,2621.4,2620.8,50.31070718]
[1723972763619,0.18628042,2621.4,2620.8,50.31070718]
[1723972763923,5.11487,2621.5,2620.9,1.90744]
[1723972764119,5.3094497,2621.5,2620.9,2.25744]
[1723972764319,4.21514,2621.4,2620.9,0.35]
[1723972764626,4.21514,2621.4,2620.9,2.25746]
[1723972765021,4.21514,2621.4,2620.9,0.35]
[1723972765221,2.308,2621.4,2620.9,0.35]
[1723972765425,1.90723,2621.3,2620.9,0.35]
[1723972766015,1.90723,2621.3,2620.9,4.1652]
[1723972766532,1.90723,2621.3,2620.9,0.35]
[1723972766724,1.90728,2621.2,2620.9,0.35]
[1723972767231,1.90728,2621.2,2620.9,4.1652]
[1723972767455,2.88010406,2621.4,2620.9,4.1652]
[1723972767731,5.11505,2621.2,2620.9,0.35]
[1723972767930,1.90725,2621.2,2620.9,0.35]
[1723972768135,1.90725,2621.2,2620.9,4.1652]
[1723972768522,1.90722,2621.3,2620.9,4.1652]
[1723972768736,1.90722,2621.3,2620.9,0.35]
[1723972768926,0.3772,2621.4,2620.9,0.35]
[1723972769135,3.2078,2621.5,2621.1,1.90725]
[1723972769426,3.2078,2621.5,2621.2,0.3519]
[1723972769632,3.2078,2621.5,2621.3,41.1788]
[1723972769833,3.2078,2621.5,2621.3,41.5254]
[1723972770033,3.2078,2621.5,2621.3,45.3398]
[1723972770433,6.4,2621.8,2621.4,5.72148]
[1723972770629,2.308,2621.8,2621.3,47.24696]
[1723972771034,2.308,2621.8,2621.4,1.9071]
[1723972771536,2.308,2621.8,2621.4,3.8144]
[1723972771734,2.308,2621.8,2621.3,41.5254]
[1723972771950,1.90692,2621.7,2621.3,41.5254]
[1723972772324,7.77376,2621.8,2621.3,41.5254]
[1723972772528,1.90691,2621.7,2621.3,41.5254]
[1723972772929,5.8669,2621.8,2621.3,41.5254]
[1723972773130,1.90693,2621.7,2621.3,41.5254]
[1723972773331,1.90698,2621.6,2621.3,41.5254]
[1723972773733,1.90693,2621.7,2621.3,41.5254]
[1723972774025,5.8669,2621.8,2621.3,41.5254]
[1723972774235,3.2078,2621.5,2621.3,41.5254]
[1723972774828,3.2078,2621.5,2621.3,45.3398]
[1723972775535,3.2078,2621.5,2621.4,3.8144]
[1723972775735,3.2078,2621.5,2621.4,5.7215]
[1723972776731,3.2078,2621.7,2621.4,5.7215]
[1723972777033,5.11474,2621.7,2621.3,41.5254]
[1723972777238,5.11474,2621.7,2621.3,47.24696]
[1723972777631,5.11472,2621.7,2621.3,47.24696]
[1723972777832,5.11472,2621.7,2621.3,45.3398]
[1723972778034,5.11472,2621.7,2621.3,47.24696]
[1723972778229,3.2078,2621.7,2621.3,45.3398]
[1723972778439,3.2078,2621.7,2621.3,47.24693]
[1723972778739,3.2078,2621.7,2621.4,1.9071]
[1723972778937,5.11475,2621.7,2621.3,41.5254]
[1723972779128,3.2078,2621.7,2621.3,45.3398]
[1723972779337,3.2078,2621.7,2621.4,5.72148]
[1723972779535,1.90684,2621.8,2621.4,5.72148]
[1723972779734,1.90676,2621.9,2621.5,1.90703]
[1723972779935,1.90676,2621.9,2621.6,0.3674]
[1723972780131,1.90676,2621.9,2621.7,0.369]
[1723972780337,1.90678,2621.9,2621.7,0.7446]
[1723972781038,1.90681,2621.8,2621.7,0.7446]
[1723972781230,1.90677,2621.9,2621.7,0.7446]
[1723972784039,9.79739688,2622.0,2621.7,0.7446]
[1723972785661,5.70539688,2622.0,2621.7,0.7446]
[1723972785843,7.61206688,2622.0,2621.7,0.7446]
[1723972786048,5.70539688,2622.0,2621.7,0.7446]
[1723972786643,7.61206688,2622.0,2621.7,0.7446]
[1723972786846,5.70539688,2622.0,2621.7,0.7446]
[1723972787143,7.61206688,2622.0,2621.7,0.7446]
[1723972787951,5.70539688,2622.0,2621.7,0.7446]
[1723972788451,3.2078,2622.0,2621.8,1.9068]
[1723972788746,3.2078,2622.0,2621.7,4.559]
[1723972789373,3.2078,2622.0,2621.7,6.46588]
[1723972789549,3.2078,2622.0,2621.7,4.559]
[1723972790439,3.2078,2622.0,2621.7,6.46588]
[1723972790747,3.2078,2622.0,2621.7,4.559]
[1723972790943,3.2078,2622.0,2621.7,6.46587]
[1723972791245,3.2078,2622.0,2621.8,1.90678]
[1723972791451,3.2078,2622.0,2621.9,1.90674]
[1723972791638,3.2078,2622.0,2621.7,4.559]
[1723972791844,3.2078,2622.0,2621.9,40.8]
[1723972792042,3.2078,2622.0,2621.9,44.6136]
[1723972792641,3.2078,2622.0,2621.9,46.52034]
[1723972793549,3.2078,2622.0,2621.9,51.52034]
[1723972793854,0.00571276,2622.1,2622.0,1.90667]
[1723972794151,0.00571276,2622.1,2622.0,6.20127]
[1723972794342,0.00571276,2622.1,2622.0,11.20127]
[1723972796352,0.00571276,2622.1,2622.0,6.20127]
[1723972796659,0.00571276,2622.1,2622.0,47.00127]
[1723972798355,0.00571276,2622.1,2622.0,52.00127]
[1723972800453,1.91231276,2622.1,2622.0,50.0946]
[1723972800650,1.91231276,2622.1,2622.0,45.0946]
[1723972803962,1.91231276,2622.1,2622.0,47.00127]
[1723972804147,0.00571276,2622.1,2622.0,47.00127]
[1723972804350,0.00571276,2622.1,2622.0,52.00127]
[1723972809862,0.00571276,2622.1,2622.0,47.00127]
[1723972812171,2.87331276,2622.1,2622.0,47.00127]
[1723972812670,0.96671276,2622.1,2622.0,47.00127]
[1723972812857,2.87331276,2622.1,2622.0,47.00127]
[1723972813058,0.96671276,2622.1,2622.0,47.00127]
[1723972813668,2.87331276,2622.1,2622.0,45.0946]
[1723972814273,2.87331276,2622.1,2622.0,44.6136]
[1723972814572,4.77991276,2622.1,2622.0,44.6136]
[1723972815168,4.77991276,2622.1,2622.0,40.8]
[1723972815572,4.77991276,2622.1,2622.0,44.6136]
[1723972815866,4.77991276,2622.1,2622.0,40.8]
[1723972817769,7.98771276,2622.1,2622.0,40.8]
[1723972817967,4.77991276,2622.1,2622.0,40.8]
[1723972818165,1.90667,2622.0,2621.6,1.90693]
[1723972818370,1.90717,2621.4,2621.1,0.9031]
[1723972818669,1.9061,2621.3,2621.2,42.70723]
[1723972818867,3.81328,2621.3,2621.2,40.8]
[1723972819575,5.11478,2621.6,2621.2,45.5762]
[1723972819871,3.2078,2621.6,2621.5,1.90703]
[1723972821767,3.2078,2621.6,2621.5,5.72143]
[1723972822478,3.2078,2621.6,2621.5,46.52143]
[1723972826167,0.961,2621.8,2621.7,1.90689]
[1723972826373,3.7456,2622.0,2621.8,1.90678]
[1723972826374,6.0755,2622.0,2621.8,1.90678]
[1723972826680,4.1688,2622.0,2621.9,1.5744]
[1723972826874,4.1688,2622.0,2621.9,42.3744]
[1723972827979,4.1688,2622.0,2621.9,44.28114]
[1723972828775,0.96671276,2622.1,2621.9,44.28111]
[1723972829378,2.9946533,2622.4,2621.9,44.28111]
[1723972829574,3.932412,2623.0,2621.9,44.28111]
[1723972829575,2.99436754,2624.0,2623.9,1.90529]
[1723972829774,3.80338485,2624.4,2623.9,4.1688]
[1723972829775,2.99436754,2624.4,2623.9,4.1688]
[1723972829972,3.39771036,2624.7,2624.5,1.90485]
[1723972829973,3.2078,2624.7,2624.5,1.90485]
[1723972830171,3.2078,2624.7,2624.6,43.66578]
[1723972830371,0.19101693,2624.9,2624.6,44.9688]
[1723972830570,0.01005475,2624.9,2624.8,2.86563]
[1723972831190,0.01005475,2624.9,2624.8,6.67523]
[1723972832086,0.01005475,2624.9,2624.8,5.71423]
[1723972836280,0.01005475,2624.9,2624.8,10.71423]
[1723972837475,0.01005475,2624.9,2624.8,5.71423]
[1723972844489,0.01005475,2624.9,2624.8,10.71423]
[1723972849388,0.01005475,2624.9,2624.8,14.92286]
[1723972850398,0.01005475,2624.9,2624.8,55.72286]
[1723972851095,0.01005475,2624.9,2624.8,57.62749]
[1723972853294,0.01005475,2624.9,2624.8,60.83529]
[1723972856495,0.01005475,2624.9,2624.8,57.62749]
[1723972856697,0.01005475,2624.9,2624.8,60.83529]
[1723972863116,0.01005475,2624.9,2624.8,52.02603]
[1723972863710,1.91461475,2624.9,2624.8,44.0078]
[1723972864007,3.81917475,2624.9,2624.8,40.8]
[1723972865003,1.91461475,2624.9,2624.8,40.8]
[1723972868416,3.81917475,2624.9,2624.8,40.8]
[1723972868722,7.62877475,2624.9,2624.8,40.8]
[1723972869311,3.80942,2624.7,2624.6,0.00312992]
[1723972869814,1.90471,2624.7,2624.6,0.00312992]
[1723972870219,5.71511,2624.7,2624.6,0.00312992]
[1723972870416,5.71511,2624.7,2624.6,40.80312992]
[1723972871101,1.90471,2624.7,2624.6,40.80312992]
[1723972871310,1.90468,2624.8,2624.6,40.80312992]
[1723972872000,0.01005475,2624.9,2624.6,40.80312992]
[1723972872206,1.90464,2624.8,2624.6,40.80312992]
[1723972872409,0.521,2624.7,2624.6,40.80312992]
[1723972872617,2.42571,2624.7,2624.6,40.80312992]
[1723972872817,6.23531,2624.7,2624.6,40.80312992]
[1723972876311,0.521,2624.7,2624.6,45.01190992]
[1723972877120,0.521,2624.7,2624.6,42.70790992]
[1723972877316,0.521,2624.7,2624.6,45.01190992]
[1723972884225,0.521,2624.7,2624.6,43.10712992]
[1723972886526,0.521,2624.7,2624.6,45.01190992]
[1723972887223,0.01005475,2624.9,2624.8,1.90463]
[1723972889426,3.81965475,2624.9,2624.6,43.10712992]
[1723972889623,0.01005475,2624.9,2624.7,1.90471]
[1723972889828,0.01005475,2624.9,2624.8,1.90463]
[1723972893717,0.01005475,2624.9,2624.6,46.31492992]
[1723972893917,0.01005475,2624.9,2624.7,1.90471]
[1723972894330,0.01005475,2624.9,2624.8,1.90463]
[1723972894830,0.01005475,2624.9,2624.6,46.31492992]
[1723972895033,0.01005475,2624.9,2624.7,1.90469]
[1723972895229,5.71426,2624.8,2624.6,40.80312992]
[1723972895428,3.8096,2624.8,2624.6,40.80312992]
[1723972895635,3.8096,2624.7,2624.6,40.80312992]
[1723972895832,3.8096,2624.8,2624.6,40.80312992]
[1723972896328,3.8096,2624.7,2624.6,42.70790992]
[1723972896528,3.8096,2624.8,2624.6,42.70790992]
[1723972896731,3.81965475,2624.9,2624.6,42.70790992]
[1723972897231,3.8096,2624.8,2624.6,40.80312992]
[1723972897532,3.81965475,2624.9,2624.6,40.80312992]
[1723972897736,5.72422475,2624.9,2624.6,40.80312992]
[1723972898032,3.81965475,2624.9,2624.6,40.80312992]
[1723972898254,3.8096,2624.8,2624.6,40.80312992]
[1723972898625,3.8096,2624.7,2624.6,40.80312992]
[1723972898831,1.91461475,2624.9,2624.6,40.80312992]
[1723972899032,3.8096,2624.8,2624.6,40.80312992]
[1723972899434,3.8096,2624.7,2624.6,40.80312992]
[1723972899634,0.01005475,2624.9,2624.6,40.80312992]
[1723972899635,3.8096,2624.8,2624.6,40.80312992]
[1723972900138,3.8096,2624.7,2624.6,40.80312992]
[1723972900339,3.8104,2624.7,2624.6,40.80312992]
[1723972901031,3.8104,2624.7,2624.6,42.70790992]
[1723972901336,3.8104,2624.7,2624.6,40.80312992]
[1723972904025,3.8104,2624.7,2624.6,42.70790992]
[1723972904726,3.8104,2624.7,2624.6,40.80312992]
[1723972905539,5.71511,2624.7,2624.6,40.80312992]
[1723972905928,5.71511,2624.7,2624.6,41.76312992]
[1723972906331,3.8104,2624.7,2624.6,41.76312992]
[1723972908335,3.8104,2624.7,2624.6,43.66790992]
[1723972909241,0.01005475,2624.9,2624.7,1.90469]
[1723972909437,0.01005475,2624.9,2624.8,0.96]
[1723972909743,3.81965475,2624.9,2624.8,0.96]
[1723972910643,3.81965475,2624.9,2624.8,2.86463]
[1723972910843,3.81965475,2624.9,2624.6,40.80312992]
[1723972911138,3.81965475,2624.9,2624.7,0.96]
[1723972911139,1.91463475,2624.9,2624.7,0.96]
[1723972911446,3.81965475,2624.9,2624.8,0.96]
[1723972911634,1.91461475,2624.9,2624.8,0.96]
[1723972911829,5.72421475,2624.9,2624.8,0.96]
[1723972912034,3.81965475,2624.9,2624.8,0.96]
[1723972912236,5.72421475,2624.9,2624.8,0.96]
[1723972912643,3.81965475,2624.9,2624.8,0.96]
[1723972912844,5.72421475,2624.9,2624.8,0.96]
[1723972914554,3.81965475,2624.9,2624.8,0.96]
[1723972914849,5.72421475,2624.9,2624.8,0.96]
[1723972915845,3.81965475,2624.9,2624.8,0.96]
[1723972916244,5.72421475,2624.9,2624.8,0.96]
[1723972916436,1.90464,2624.8,2624.6,40.80312992]
[1723972916642,4.39872,2624.7,2624.6,40.80312992]
[1723972916842,6.30361,2624.7,2624.6,40.80312992]
[1723972919251,6.49151214,2624.7,2624.6,40.80312992]
[1723972920248,11.49151214,2624.7,2624.6,40.80312992]
[1723972920638,6.49151214,2624.7,2624.6,40.80312992]
[1723972921136,11.49151214,2624.7,2624.6,40.80312992]
[1723972921751,6.30361,2624.7,2624.6,40.80312992]
[1723972922343,5.71431,2624.7,2624.6,40.80312992]
[1723972922554,5.71431,2624.7,2624.6,41.76312992]
[1723972923544,5.71431,2624.7,2624.6,40.80312992]
[1723972923845,5.90602393,2624.7,2624.6,40.80312992]
[1723972925553,13.77073393,2624.7,2624.6,40.80312992]
[1723972925753,16.97853393,2624.7,2624.6,40.80312992]
[1723972925941,8.77073393,2624.7,2624.6,40.80312992]
[1723972926146,11.97853393,2624.7,2624.6,40.80312992]
[1723972926959,13.77073393,2624.7,2624.6,40.80312992]
[1723972928453,16.97853393,2624.7,2624.6,40.80312992]
[1723972929047,11.97853393,2624.7,2624.6,40.80312992]
[1723972929865,16.97853393,2624.7,2624.6,40.80312992]
[1723972930653,11.97853393,2624.7,2624.6,40.80312992]
[1723972931160,16.97853393,2624.7,2624.6,40.80312992]
[1723972931559,11.97853393,2624.7,2624.6,40.80312992]
[1723972933473,12.28016146,2624.7,2624.6,40.80312992]
[1723972934055,17.28016146,2624.7,2624.6,40.80312992]
[1723972934249,12.28016146,2624.7,2624.6,40.80312992]
[1723972937861,11.97853393,2624.7,2624.6,40.80312992]
[1723972938065,10.07382393,2624.7,2624.6,40.80312992]
[1723972938360,3.05642393,2624.7,2624.6,40.80312992]
[1723972938559,6.86682393,2624.7,2624.6,40.80312992]
[1723972939259,11.97933393,2624.7,2624.6,40.80312992]
[1723972939960,17.55643393,2624.7,2624.6,40.80312992]
[1723972940160,12.55643393,2624.7,2624.6,40.80312992]
[1723972944663,9.34863393,2624.7,2624.6,40.80312992]
[1723972945053,12.55643393,2624.7,2624.6,40.80312992]
[1723972947667,9.34863393,2624.7,2624.6,40.80312992]
[1723972947870,12.55643393,2624.7,2624.6,40.80312992]
[1723972950274,1.90485,2624.5,2624.4,0.00571276]
[1723972950572,2.86485,2624.5,2624.4,0.00571276]
[1723972950763,6.67525,2624.5,2624.4,40.80571276]
[1723972951168,2.86485,2624.5,2624.4,40.80571276]
[1723972951365,6.67525,2624.5,2624.4,40.80906715]
[1723972952564,2.86485,2624.5,2624.4,40.80906715]
[1723972952766,5.71525,2624.5,2624.4,40.80906715]
[1723972952971,6.67525,2624.5,2624.4,40.80906715]
[1723972955374,6.97250108,2624.5,2624.4,40.80906715]
[1723972957979,12.91735108,2624.5,2624.4,40.80906715]
[1723972958177,1.90484,2624.6,2624.4,40.80906715]
[1723972958377,1.90485,2624.6,2624.4,40.80906715]
[1723972958578,4.35951393,2624.7,2624.4,40.80906715]
[1723972958579,1.90485,2624.5,2624.4,40.80906715]
[1723972958786,2.86485,2624.5,2624.4,40.80906715]
[1723972968280,6.67525,2624.5,2624.4,40.80906715]
[1723972968675,2.86485,2624.5,2624.4,40.80906715]
[1723972972083,3.16740463,2624.5,2624.4,40.80906715]
[1723972972289,6.97780463,2624.5,2624.4,40.80906715]
[1723972973797,3.16740463,2624.5,2624.4,40.80906715]
[1723972974087,2.86485,2624.5,2624.4,40.80906715]
[1723972977003,6.67525,2624.5,2624.4,40.80906715]
[1723972977195,7.34455,2624.5,2624.4,40.80906715]
[1723972982495,9.2494,2624.5,2624.4,40.80906715]
[1723972982690,3.53415,2624.5,2624.4,40.80906715]
[1723972986091,7.34455,2624.5,2624.4,40.80906715]
[1723972986604,3.53415,2624.5,2624.4,40.80906715]
[1723972986798,7.34455,2624.5,2624.4,40.80906715]
[1723972986997,3.53415,2624.5,2624.4,40.80906715]
[1723972987401,7.34455,2624.5,2624.4,40.80906715]
[1723972987706,3.53415,2624.5,2624.4,40.80906715]
[1723972989707,6.74195,2624.5,2624.4,40.80906715]
[1723972989905,10.55235,2624.5,2624.4,40.80906715]
[1723972993406,5.78195,2624.5,2624.4,40.80906715]
[1723972993598,6.07265,2624.5,2624.4,40.80906715]
[1723972997413,11.7879,2624.5,2624.4,40.80906715]
[1723972997714,9.88305,2624.5,2624.4,40.80906715]
[1723972999203,6.07265,2624.5,2624.4,40.80906715]
[1723973002111,7.9775,2624.5,2624.4,40.80906715]
[1723973002318,6.07265,2624.5,2624.4,40.80906715]
[1723973003115,7.9775,2624.5,2624.4,40.80906715]
[1723973003315,6.07265,2624.5,2624.4,40.80906715]
[1723973005613,7.9775,2624.5,2624.4,40.80906715]
[1723973005816,6.07265,2624.5,2624.4,40.80906715]
[1723973006117,7.9775,2624.5,2624.4,40.80906715]
[1723973007109,11.7879,2624.5,2624.4,40.80906715]
[1723973007619,16.204031,2624.5,2624.4,40.80906715]
[1723973007918,14.299181,2624.5,2624.4,40.80906715]
[1723973008108,16.204031,2624.5,2624.4,40.80906715]
[1723973008307,14.299181,2624.5,2624.4,40.80906715]
[1723973008503,9.88305,2624.5,2624.4,40.80906715]
[1723973009017,6.07265,2624.5,2624.4,40.80906715]
[1723973009914,7.9775,2624.5,2624.4,40.80906715]
[1723973010222,12.393631,2624.5,2624.4,40.80906715]
[1723973010725,10.488781,2624.5,2624.4,40.80906715]
[1723973010922,12.393631,2624.5,2624.4,40.80906715]
[1723973011420,10.488781,2624.5,2624.4,40.80906715]
[1723973012009,1.90529,2623.9,2623.0,0.98939532]
[1723973012325,1.90558,2623.5,2623.4,0.7248]
[1723973012526,1.90558,2623.5,2623.4,41.5248]
[1723973013221,1.90558,2623.5,2623.4,41.52953331]
[1723973013426,2.86558,2623.5,2623.4,41.52953331]
[1723973021026,11.79096,2623.5,2623.4,40.80473331]
[1723973023737,12.08766478,2623.5,2623.4,40.80473331]
[1723973024522,1.90575,2623.3,2623.0,0.7218]
[1723973024727,1.90587,2623.1,2623.0,0.7218]
[1723973025234,1.90587,2623.1,2623.0,41.5218]
[1723973025625,1.90587,2623.1,2623.0,41.52483024]
[1723973028828,3.81174,2623.1,2623.0,40.80303024]
[1723973029336,1.90623,2622.6,2622.5,0.7329]
[1723973029526,3.05833159,2622.6,2622.5,0.7329]
[1723973030228,3.05833159,2622.6,2622.5,41.5329]
[1723973030431,3.06240729,2622.6,2622.5,41.53566863]
[1723973031834,3.79400729,2622.6,2622.5,41.53566863]
[1723973032535,5.70023729,2622.6,2622.5,40.80276863]
[1723973035634,3.79400729,2622.6,2622.5,40.80276863]
[1723973040531,0.0040757,2622.6,2622.5,40.80276863]
[1723973041133,0.9640757,2622.6,2622.5,40.80276863]
[1723973044338,0.9640757,2622.6,2622.5,41.50366863]
[1723973045629,0.9640757,2622.6,2622.5,45.31646863]
[1723973050246,2.8703057,2622.6,2622.5,45.31646863]
[1723973051245,2.8703057,2622.6,2622.5,41.50366863]
[1723973051438,2.8703057,2622.6,2622.5,40.80276863]
[1723973054650,4.7765357,2622.6,2622.5,40.80276863]
[1723973054842,2.8703057,2622.6,2622.5,40.80276863]
[1723973055045,4.7765357,2622.6,2622.5,40.80276863]
[1723973055749,1.9103057,2622.6,2622.5,40.80276863]
[1723973055948,0.0040757,2622.6,2622.5,40.80276863]
[1723973056155,0.9640757,2622.6,2622.5,40.80276863]
[1723973057550,0.0040757,2622.6,2622.5,52.48187863]
[1723973057746,0.0040757,2622.6,2622.5,51.52187863]
[1723973058056,0.0040757,2622.6,2622.5,46.52187863]
[1723973058354,0.0040757,2622.6,2622.5,47.70907863]
[1723973058653,0.0040757,2622.6,2622.5,51.52187863]
[1723973059154,0.0040757,2622.6,2622.5,46.52187863]
[1723973059356,0.0040757,2622.6,2622.5,51.52187863]
[1723973062854,0.0040757,2622.6,2622.5,44.61556863]
[1723973063162,0.9640757,2622.6,2622.5,44.61556863]
[1723973063361,0.9640757,2622.6,2622.5,46.52187863]
[1723973063959,0.9640757,2622.6,2622.5,44.61556863]
[1723973064166,0.0040757,2622.6,2622.5,52.48187863]
[1723973064753,0.0040757,2622.6,2622.5,44.61556863]
[1723973064958,0.9640757,2622.6,2622.5,44.61556863]
[1723973065964,0.9640757,2622.6,2622.5,40.80276863]
[1723973066160,2.8703057,2622.6,2622.5,40.80276863]
[1723973066381,0.9640757,2622.6,2622.5,40.80276863]
[1723973067668,2.8703057,2622.6,2622.5,40.80276863]
[1723973067871,0.9640757,2622.6,2622.5,40.80276863]
[1723973068574,0.9640757,2622.6,2622.5,44.61556863]
[1723973070057,0.0040757,2622.6,2622.5,44.61556863]
[1723973070262,0.0040757,2622.6,2622.5,50.68967863]
[1723973071879,0.0040757,2622.6,2622.5,47.48187863]
[1723973072470,0.0040757,2622.6,2622.5,45.57556863]
[1723973072676,0.0040757,2622.6,2622.5,44.61556863]
[1723973072868,0.0040757,2622.6,2622.5,40.80276863]
[1723973075971,0.7291757,2622.6,2622.5,40.80276863]
[1723973076575,2.6354057,2622.6,2622.5,40.80276863]
[1723973076975,0.7291757,2622.6,2622.5,40.80276863]
[1723973078375,0.7291757,2622.6,2622.5,44.61556863]
[1723973078784,0.0040757,2622.6,2622.5,44.61556863]
[1723973080077,0.0040757,2622.6,2622.5,46.52187863]
[1723973080279,4.092,2623.2,2622.5,53.78336863]
[1723973080576,0.00571276,2623.4,2623.0,5.11373]
[1723973080577,0.96,2623.3,2623.0,5.11373]
[1723973080875,0.96,2623.3,2623.2,1.9058]
[1723973081076,0.00571276,2623.4,2623.2,1.9058]
[1723973081283,8.85439,2623.8,2623.6,1.90546]
[1723973081284,0.96,2623.8,2623.6,1.90546]
[1723973081473,0.96,2623.8,2623.6,4.7712]
[1723973081674,0.96,2623.8,2623.7,41.4746]
[1723973082076,0.96,2623.8,2623.7,45.2858]
[1723973082284,0.96455738,2623.8,2623.7,45.2858]
[1723973082576,0.96455738,2623.8,2623.7,41.4746]
[1723973090978,0.96455738,2623.8,2623.7,43.38003]
[1723973090979,0.00455738,2623.8,2623.7,43.38003]
[1723973091185,0.00455738,2623.8,2623.7,44.07523]
[1723973092579,0.00455738,2623.8,2623.7,42.1698]
[1723973092986,0.00455738,2623.8,2623.7,44.07523]
[1723973093183,0.00455738,2623.8,2623.7,42.1698]
[1723973093797,0.00455738,2623.8,2623.7,44.07523]
[1723973094093,0.00455738,2623.8,2623.7,48.84643]
[1723973100693,0.00455738,2623.8,2623.7,47.88643]
[1723973104103,0.00455738,2623.8,2623.7,48.84643]
[1723973105503,1.90991738,2623.8,2623.7,48.84643]
[1723973106388,0.00455738,2623.8,2623.7,48.84643]
[1723973106884,1.90991738,2623.8,2623.7,48.84643]
[1723973110104,0.00455738,2623.8,2623.7,48.84643]
[1723973110331,1.90991738,2623.8,2623.7,48.84643]
[1723973111387,0.00455738,2623.8,2623.7,48.84643]
[1723973111594,3.81527738,2623.8,2623.7,40.8]
[1723973111795,4.77527738,2623.8,2623.7,40.8]
[1723973113586,2.86991738,2623.8,2623.7,40.8]
[1723973116415,0.96455738,2623.8,2623.7,40.8]
[1723973116600,2.86991738,2623.8,2623.7,40.8]
[1723973119802,0.96455738,2623.8,2623.7,40.8]
[1723973120698,0.00455738,2623.8,2623.7,40.8]
[1723973121197,1.90991738,2623.8,2623.7,40.8]
[1723973121407,0.00455738,2623.8,2623.7,40.8]
[1723973123917,1.90991738,2623.8,2623.7,40.8]
[1723973124109,0.00455738,2623.8,2623.7,40.8]
[1723973125307,1.90991738,2623.8,2623.7,40.8]
[1723973125606,0.00455738,2623.8,2623.7,40.8]
[1723973130610,2.86991738,2623.8,2623.7,40.8]
[1723973130810,0.96455738,2623.8,2623.7,40.8]
[1723973132816,2.86991738,2623.8,2623.7,40.8]
[1723973134100,0.96455738,2623.8,2623.7,40.8]
[1723973134512,2.86991738,2623.8,2623.7,40.8]
[1723973134714,0.96455738,2623.8,2623.7,40.8]
[1723973135918,2.86991738,2623.8,2623.7,40.8]
[1723973136808,3.18007838,2623.8,2623.7,40.8]
[1723973138412,2.86991738,2623.8,2623.7,40.8]
[1723973138608,0.96455738,2623.8,2623.7,40.8]
[1723973138924,2.86991738,2623.8,2623.7,40.8]
[1723973139413,0.96455738,2623.8,2623.7,40.8]
[1723973140406,2.86991738,2623.8,2623.7,40.8]
[1723973141609,0.96455738,2623.8,2623.7,40.8]
[1723973141806,2.86991738,2623.8,2623.7,40.8]
[1723973142708,0.96455738,2623.8,2623.7,40.8]
[1723973143411,2.86991738,2623.8,2623.7,40.8]
[1723973144719,0.96455738,2623.8,2623.7,40.8]
[1723973144908,2.86991738,2623.8,2623.7,40.8]
[1723973154715,0.96455738,2623.8,2623.7,40.8]
[1723973155115,0.00455738,2623.8,2623.7,40.8]
[1723973155720,1.90991738,2623.8,2623.7,40.8]
[1723973161325,0.00455738,2623.8,2623.7,40.8]
[1723973173338,1.90991738,2623.8,2623.7,40.8]
[1723973173536,0.00455738,2623.8,2623.7,40.8]
[1723973174141,0.96455738,2623.8,2623.7,40.8]
[1723973175541,2.86991738,2623.8,2623.7,40.8]
[1723973175739,0.96455738,2623.8,2623.7,40.8]
[1723973175957,2.86991738,2623.8,2623.7,40.8]
[1723973176629,0.96455738,2623.8,2623.7,40.8]
[1723973179142,2.86991738,2623.8,2623.7,40.8]
[1723973179342,0.96455738,2623.8,2623.7,40.8]
[1723973180443,2.86991738,2623.8,2623.7,40.8]
[1723973183348,0.96455738,2623.8,2623.7,40.8]
[1723973183547,2.86991738,2623.8,2623.7,40.8]
[1723973186649,3.55601738,2623.8,2623.7,40.8]
[1723973188537,1.65065738,2623.8,2623.7,40.8]
[1723973189540,3.55601738,2623.8,2623.7,40.8]
[1723973189946,1.65065738,2623.8,2623.7,40.8]
[1723973190447,3.55601738,2623.8,2623.7,40.8]
[1723973192350,1.65065738,2623.8,2623.7,40.8]
[1723973192751,0.69065738,2623.8,2623.7,40.8]
[1723973192951,1.65065738,2623.8,2623.7,40.8]
[1723973193451,3.55601738,2623.8,2623.7,40.8]
[1723973193842,3.55601738,2623.8,2623.5,0.00571276]
[1723973193843,3.81102,2623.6,2623.5,0.00571276]
[1723973194050,11.52188619,2623.6,2623.5,0.00571276]
[1723973194245,11.52188619,2623.6,2623.5,40.80571276]
[1723973194246,8.92531,2623.6,2623.5,40.80571276]
[1723973194442,14.13023084,2623.6,2623.5,40.80571276]
[1723973195350,9.62721,2623.6,2623.5,40.80571276]
[1723973197857,16.8304566,2623.6,2623.5,40.80571276]
[1723973198053,1.90587,2623.1,2623.0,1.4406]
[1723973198256,0.96,2623.1,2622.8,0.6914]
[1723973198564,0.96,2622.9,2622.8,0.6914]
[1723973199054,0.96,2622.9,2622.8,41.4914]
[1723973200155,11.79264,2622.9,2622.8,40.8]
[1723973200469,9.88662,2622.9,2622.8,40.8]
[1723973200649,14.88662,2622.9,2622.8,40.8]
[1723973201449,16.79264,2622.9,2622.8,40.8]
[1723973202850,14.88662,2622.9,2622.8,40.8]
[1723973203253,10.19201847,2622.9,2622.8,40.8]
[1723973203459,15.19201847,2622.9,2622.8,40.8]
[1723973203758,10.19201847,2622.9,2622.8,40.8]
[1723973203957,15.19201847,2622.9,2622.8,40.8]
[1723973204645,17.09803847,2622.9,2622.8,40.8]
[1723973204952,15.19201847,2622.9,2622.8,40.8]
[1723973205150,17.09803847,2622.9,2622.8,40.8]
[1723973205963,15.19201847,2622.9,2622.8,40.8]
[1723973206156,17.09803847,2622.9,2622.8,40.8]
[1723973207354,15.19201847,2622.9,2622.8,40.8]
[1723973208065,17.09803847,2622.9,2622.8,40.8]